fUST/lending_fUST_20250515
["ID","MTS","AMOUNT","RATE_DAILY","PERIOD"]
[361124168,1747287067571,-301.48194132,0.00024876,2]
[361124169,1747287067580,-303.70554525,0.00024876,2]
[361124170,1747287067590,-450.0,0.00024876,2]
[361124171,1747287067599,-450.0,0.00024876,2]
[361124172,1747287067609,-450.0,0.00024876,2]
[361124173,1747287067618,-301.75608164,0.00024876,2]
[361124174,1747287067628,-450.0,0.00024876,2]
[361124175,1747287067637,-301.10654525,0.00024876,2]
[361124176,1747287067647,-450.0,0.00024876,2]
[361124177,1747287067657,-302.28031177,0.00024876,2]
[361124178,1747287067666,-312.50196076,0.00024876,2]
[361124179,1747287067676,-303.41023216,0.00024876,2]
[361124180,1747287067685,-302.15977914,0.00024876,2]
[361124181,1747287067695,-258.86046613,0.00024876,2]
[361124182,1747287067706,-557.82492884,0.00024876,2]
[361124183,1747287067716,-303.79070984,0.00024876,2]
[361124184,1747287067725,-450.0,0.00024876,2]
[361124185,1747287067734,-450.0,0.00024876,2]
[361124186,1747287067743,-452.0152296,0.00024876,2]
[361124187,1747287067753,-301.14101596,0.00024876,2]
[361124188,1747287067762,-450.0,0.00024876,2]
[361124189,1747287067771,-301.92721032,0.00024876,2]
[361124190,1747287067781,-450.0,0.00024876,2]
[361124191,1747287067790,-301.9478941,0.00024876,2]
[361124192,1747287067799,-450.0,0.00024876,2]
[361124193,1747287067809,-401.23889422,0.00024876,2]
[361124194,1747287067818,-302.63195035,0.00024876,2]
[361124195,1747287067827,-302.0494377,0.00024876,2]
[361124196,1747287067836,-450.0,0.00024876,2]
[361124197,1747287067846,-450.0,0.00024876,2]
[361124198,1747287067855,-302.36446493,0.00024876,2]
[361124199,1747287067864,-450.12863455,0.00024876,2]
[361124200,1747287067874,-301.05767851,0.00024876,2]
[361124201,1747287067883,-300.96824457,0.00024876,2]
[361124202,1747287067893,-480.04260175,0.00024876,2]
[361124203,1747287067902,-371.70255906,0.00024876,2]
[361124204,1747287067911,-550.3216598,0.00024876,2]
[361124205,1747287067921,-450.0,0.00024876,2]
[361124206,1747287067930,-303.06145903,0.00024876,2]
[361124207,1747287067940,-303.27138381,0.00024876,2]
[361124208,1747287067949,-302.77845241,0.00024876,2]
[361124209,1747287067962,-514.90901908,0.00024876,2]
[361124210,1747287067972,-302.17003244,0.00024876,2]
[361124211,1747287067981,-450.0,0.00024876,2]
[361124212,1747287067991,-450.0,0.00024876,2]
[361124213,1747287068001,-450.0,0.00024876,2]
[361124214,1747287068010,-450.0,0.00024876,2]
[361124215,1747287068020,-450.0,0.00024876,2]
[361124216,1747287068029,-450.0,0.00024876,2]
[361124217,1747287068039,-301.37540973,0.00024876,2]
[361124218,1747287068048,-301.27564948,0.00024876,2]
[361124219,1747287068060,-301.68828176,0.00024876,2]
[361124220,1747287068069,-450.0,0.00024876,2]
[361124221,1747287068079,-450.0,0.00024876,2]
[361124222,1747287068088,-450.0,0.00024876,2]
[361124223,1747287068098,-302.90103481,0.00024876,2]
[361124224,1747287068107,-188.90518167,0.00024876,2]
[361124225,1747287068116,-450.0,0.00024876,2]
[361124226,1747287068126,-450.0,0.00024876,2]
[361124227,1747287068135,-450.0,0.00024876,2]
[361124228,1747287068145,-400.13652978,0.00024876,2]
[361124229,1747287068154,-546.69189843,0.00024876,2]
[361124230,1747287068165,-303.19115681,0.00024876,2]
[361124231,1747287068174,-540.81052812,0.00024876,2]
[361124232,1747287068184,-300.73511274,0.00024876,2]
[361124233,1747287068193,-301.68758553,0.00024876,2]
[361124234,1747287068203,-301.80673603,0.00024876,2]
[361124235,1747287068212,-303.24886749,0.00024876,2]
[361124236,1747287068222,-482.61463669,0.00024876,2]
[361124237,1747287068231,-523.00114421,0.00024876,2]
[361124238,1747287068310,-450.0,0.00024876,2]
[361124239,1747287068320,-450.0,0.00024876,2]
[361124240,1747287068330,-450.0,0.00024876,2]
[361124241,1747287068339,-324.43241578,0.00024876,2]
[361124242,1747287068349,-450.0,0.00024876,2]
[361124243,1747287068359,-450.0,0.00024876,2]
[361124244,1747287068370,-450.0,0.00024876,2]
[361124245,1747287068380,-355.83552925,0.00024876,2]
[361124246,1747287068390,-450.0,0.00024876,2]
[361124247,1747287068401,-450.0,0.00024876,2]
[361124248,1747287068411,-301.41704221,0.00024876,2]
[361124249,1747287068421,-450.0,0.00024876,2]
[361124250,1747287068430,-450.0,0.00024876,2]
[361124251,1747287068440,-450.0,0.00024876,2]
[361124252,1747287068451,-450.0,0.00024876,2]
[361124253,1747287068462,-300.73047115,0.00024876,2]
[361124254,1747287068471,-450.0,0.00024876,2]
[361124255,1747287068481,-450.0,0.00024876,2]
[361124256,1747287068491,-300.9141955,0.00024876,2]
[361124257,1747287068500,-450.0,0.00024876,2]
[361124258,1747287068510,-215.92053941,0.00024876,2]
[361124259,1747287068520,-248.38649158,0.00024876,2]
[361124260,1747287068529,-301.84828547,0.00024876,2]
[361124261,1747287068539,-450.0,0.00024876,2]
[361124262,1747287068549,-450.0,0.00024876,2]
[361124263,1747287068558,-450.0,0.00024876,2]
[361124264,1747287068568,-450.0,0.00024876,2]
[361124265,1747287068577,-450.0,0.00024876,2]
[361124266,1747287068586,-301.69173054,0.00024876,2]
[361124267,1747287068596,-450.0,0.00024876,2]
[361124268,1747287068606,-450.0,0.00024876,2]
[361124269,1747287068616,-450.0,0.00024876,2]
[361124270,1747287068626,-450.0,0.00024876,2]
[361124271,1747287068635,-450.0,0.00024876,2]
[361124272,1747287068645,-450.0,0.00024876,2]
[361124273,1747287068656,-450.0,0.00024876,2]
[361124274,1747287068667,-450.0,0.00024876,2]
[361124275,1747287068676,-450.0,0.00024876,2]
[361124276,1747287068685,-159.43408166,0.00024876,2]
[361124277,1747287068741,-290.56591834,0.00024876,2]
[361124278,1747287068750,-201.01528788,0.00024876,2]
[361124279,1747287068760,-450.0,0.00024876,2]
[361124280,1747287068771,-395.79970878,0.00024876,2]
[361124281,1747287068784,-154.30635421,0.00024876,2]
[361124282,1747287068794,-450.0,0.00024876,2]
[361124283,1747287068803,-450.0,0.00024876,2]
[361124284,1747287068816,-346.28799915,0.00024876,2]
[361124285,1747287068840,-450.0,0.00024876,2]
[361124286,1747287068857,-360.66333255,0.00024876,2]
[361124287,1747287068877,-450.0,0.00024876,2]
[361124288,1747287068898,-450.0,0.00024876,2]
[361124289,1747287068919,-301.36861281,0.00024876,2]
[361124290,1747287068939,-450.0,0.00024876,2]
[361124291,1747287068957,-450.0,0.00024876,2]
[361124292,1747287068973,-311.16703617,0.00024876,2]
[361124293,1747287068992,-450.0,0.00024876,2]
[361124294,1747287069012,-450.0,0.00024876,2]
[361124295,1747287069027,-450.0,0.00024876,2]
[361124296,1747287069048,-450.0,0.00024876,2]
[361124297,1747287069064,-450.0,0.00024876,2]
[361124298,1747287069080,-170.70063298,0.00024876,2]
[361124299,1747287069092,-450.0,0.00024876,2]
[361124300,1747287069110,-306.94766278,0.00024876,2]
[361124301,1747287069126,-786.65,0.00024876,2]
[361124302,1747287069142,-450.0,0.00024876,2]
[361124303,1747287069157,-173.34506491,0.00024876,2]
[361124304,1747287069172,-450.0,0.00024876,2]
[361124305,1747287069186,-450.0,0.00024876,2]
[361124306,1747287069202,-450.0,0.00024876,2]
[361124307,1747287069217,-319.61181677,0.00024876,2]
[361124308,1747287069233,-322.29812548,0.00024876,2]
[361124309,1747287069248,-450.0,0.00024876,2]
[361124310,1747287069263,-450.0,0.00024876,2]
[361124311,1747287069273,-450.0,0.00024876,2]
[361124312,1747287069282,-264.85557736,0.00024876,2]
[361124313,1747287069291,-450.0,0.00024876,2]
[361124314,1747287069301,-450.0,0.00024876,2]
[361124315,1747287069310,-450.0,0.00024876,2]
[361124316,1747287069320,-337.25616134,0.00024876,2]
[361124317,1747287069329,-450.0,0.00024876,2]
[361124318,1747287069339,-450.0,0.00024876,2]
[361124319,1747287069348,-450.0,0.00024876,2]
[361124320,1747287069357,-450.0,0.00024876,2]
[361124321,1747287069367,-450.0,0.00024876,2]
[361124322,1747287069377,-450.0,0.00024876,2]
[361124323,1747287069387,-285.38005107,0.00024876,2]
[361124327,1747287303162,3984.81764156,0.000145,2]
[361124443,1747288232866,-5000.0,0.00016681,2]
[361124444,1747288232875,-164.9538145,0.0001685,2]
[361124445,1747288232885,-151.24604537,0.000176,2]
[361124446,1747288232895,-4858.3979248,0.00017737,2]
[361124447,1747288232907,-20041.6020752,0.00017737,2]
[361124448,1747288232916,-233.38223323,0.00017889,2]
[361124449,1747288232925,-663.0,0.0001789,2]
[361124450,1747288232935,-230.0,0.00017899,2]
[361124451,1747288232946,-230.0,0.00017899,2]
[361124452,1747288232955,-230.0,0.00017899,2]
[361124453,1747288232965,-230.0,0.00017899,2]
[361124454,1747288232979,-230.0,0.00017899,2]
[361124455,1747288232988,-230.0,0.00017899,2]
[361124456,1747288232997,-230.0,0.00017899,2]
[361124457,1747288233006,-230.0,0.00017899,2]
[361124458,1747288233017,-151.0,0.000179,2]
[361124459,1747288233027,-151.0,0.000179,2]
[361124460,1747288233036,-151.0,0.000179,2]
[361124461,1747288233047,-151.0,0.000179,2]
[361124462,1747288233058,-214.11064,0.000179,2]
[361124463,1747288233067,-230.0,0.000179,2]
[361124464,1747288233077,-230.0,0.000179,2]
[361124465,1747288233086,-230.0,0.000179,2]
[361124466,1747288233097,-230.0,0.000179,2]
[361124467,1747288233107,-230.0,0.000179,2]
[361124468,1747288233116,-230.0,0.000179,2]
[361124469,1747288233126,-230.0,0.000179,2]
[361124470,1747288233136,-230.0,0.000179,2]
[361124471,1747288233146,-230.0,0.000179,2]
[361124472,1747288233155,-230.0,0.000179,2]
[361124473,1747288233165,-230.0,0.000179,2]
[361124474,1747288233174,-230.0,0.000179,2]
[361124475,1747288233183,-502.77,0.000179,14]
[361124476,1747288233195,-502.4,0.000179,14]
[361124477,1747288233205,-1951.4476072,0.000179,2]
[361124478,1747288233215,-176.8351447,0.00017943,2]
[361124479,1747288233225,-502.77,0.00018,14]
[361124480,1747288233235,-502.4,0.00018,14]
[361124481,1747288233244,-502.77,0.000182,14]
[361124482,1747288233254,-502.4,0.000182,14]
[361124483,1747288233263,-1951.44760696,0.00018279,2]
[361124484,1747288233276,-502.4,0.000184,14]
[361124485,1747288233286,-502.77,0.000184,14]
[361124486,1747288233295,-502.4,0.000186,14]
[361124487,1747288233305,-502.77,0.000186,14]
[361124488,1747288233315,-1951.44760696,0.00018659,2]
[361124489,1747288233532,-502.4,0.000187,14]
[361124490,1747288233542,-502.76,0.000187,14]
[361124491,1747288233552,-502.4,0.000189,14]
[361124492,1747288233562,-1951.44760696,0.00019038,2]
[361124493,1747288233571,-502.4,0.000191,14]
[361124494,1747288233581,-1951.44760696,0.00019417,2]
[361124495,1747288233591,-816.48553103,0.0001972,2]
[361124496,1747288233600,-500.0,0.00019796,2]
[361124497,1747288233610,-1951.44760696,0.00019797,2]
[361124498,1747288233619,-500.7041132,0.0001982,2]
[361124499,1747288233629,-500.0,0.0001982,2]
[361124500,1747288233639,-500.0,0.0002,2]
[361124501,1747288233648,-500.0,0.0002,2]
[361124502,1747288233658,-500.0,0.0002,2]
[361124503,1747288233668,-500.0,0.0002,2]
[361124504,1747288233677,-500.0,0.0002,2]
[361124505,1747288233689,-500.0,0.0002,2]
[361124506,1747288233699,-500.0,0.0002,2]
[361124507,1747288233709,-500.0,0.0002,2]
[361124509,1747288233718,-500.0,0.0002,2]
[361124510,1747288233728,-500.0,0.0002,2]
[361124511,1747288233738,-500.0,0.0002,2]
[361124512,1747288233747,-1951.44760696,0.00020176,2]
[361124513,1747288233757,-160.0,0.00020409,2]
[361124514,1747288233767,-180.0180018,0.00020509,2]
[361124515,1747288233777,-1951.44760696,0.00020555,3]
[361124516,1747288233786,-1951.44760696,0.00020934,4]
[361124517,1747288233795,-816.48553096,0.00020947,2]
[361124518,1747288233806,-1951.44760696,0.00021314,5]
[361124519,1747288233815,-184.745,0.000216,2]
[361124520,1747288233824,-1951.44760696,0.00021693,5]
[361124521,1747288233834,-1951.44760696,0.00022072,6]
[361124522,1747288233844,-816.48553096,0.00022173,2]
[361124523,1747288233853,-1951.44760696,0.00022452,7]
[361124524,1747288233863,-1951.44760696,0.00022831,8]
[361124525,1747288233873,-590.78,0.00023,2]
[361124526,1747288233886,-1951.44760696,0.0002321,8]
[361124527,1747288233896,-816.48553096,0.000234,2]
[361124528,1747288233907,-1951.44760696,0.0002359,9]
[361124529,1747288233918,-1951.44760696,0.00023969,10]
[361124530,1747288233930,-1951.44760696,0.00024348,11]
[361124531,1747288233943,-14000.0,0.000244,30]
[361124532,1747288233953,-18952.9594564,0.000244,2]
[361124533,1747288233962,-449.29,0.000244,7]
[361124534,1747288233975,-314.33516537,0.000244,30]
[361124535,1747288233985,-197.93413595,0.000246,5]
[361124536,1747288233994,-816.48553096,0.00024627,2]
[361124537,1747288234004,-323.30051281,0.00024657,2]
[361124538,1747288234014,-184.06088182,0.00024657,2]
[361124539,1747288234023,-450.0,0.00024657,2]
[361124540,1747288234033,-191.12422495,0.00024657,2]
[361124541,1747288234042,-450.0,0.00024657,2]
[361124542,1747288234052,-450.0,0.00024657,2]
[361124543,1747288234062,-322.99494923,0.00024657,2]
[361124544,1747288234071,-450.0,0.00024657,2]
[361124545,1747288234081,-216.47193877,0.00024657,2]
[361124546,1747288234090,-393.21700156,0.00024657,2]
[361124547,1747288234100,-305.4065048,0.00024657,2]
[361124548,1747288234110,-500.0,0.00024657,2]
[361124549,1747288234119,-296.44561827,0.00024657,2]
[361124550,1747288234130,-289.87762816,0.00024657,2]
[361124551,1747288234143,-450.0,0.00024657,2]
[361124552,1747288234155,-450.0,0.00024657,2]
[361124553,1747288234165,-489.16659115,0.00024657,2]
[361124554,1747288234176,-400.6852572,0.00024657,2]
[361124555,1747288234185,-450.0,0.00024657,2]
[361124556,1747288234195,-450.0,0.00024657,2]
[361124557,1747288234205,-536.0243757,0.00024657,2]
[361124558,1747288234215,-450.0,0.00024657,2]
[361124559,1747288234224,-450.0,0.00024657,2]
[361124560,1747288234234,-450.0,0.00024657,2]
[361124561,1747288234245,-255.50234326,0.00024657,2]
[361124562,1747288234254,-208.05893316,0.00024657,2]
[361124563,1747288234264,-498.58708486,0.00024657,2]
[361124564,1747288234274,-450.0,0.00024657,2]
[361124565,1747288234283,-450.0,0.00024657,2]
[361124566,1747288234293,-450.0,0.00024657,2]
[361124567,1747288234302,-450.0,0.00024657,2]
[361124568,1747288234312,-450.0,0.00024657,2]
[361124569,1747288234322,-316.50847155,0.00024657,2]
[361124570,1747288234332,-522.50919857,0.00024657,2]
[361124571,1747288234341,-450.0,0.00024657,2]
[361124572,1747288234351,-450.0,0.00024657,2]
[361124573,1747288234362,-450.0,0.00024657,2]
[361124574,1747288234371,-450.0,0.00024657,2]
[361124575,1747288234381,-254.79274087,0.00024657,2]
[361124576,1747288234390,-303.93263152,0.00024657,2]
[361124577,1747288234400,-496.95652471,0.00024657,2]
[361124578,1747288234410,-450.0,0.00024657,2]
[361124579,1747288234419,-317.48616036,0.00024657,2]
[361124580,1747288234429,-450.0,0.00024657,2]
[361124581,1747288234439,-438.02915316,0.00024657,2]
[361124582,1747288234449,-425.66726357,0.00024657,2]
[361124583,1747288234459,-450.0,0.00024657,2]
[361124584,1747288234469,-450.0,0.00024657,2]
[361124585,1747288234479,-303.43487864,0.00024657,2]
[361124586,1747288234490,-450.0,0.00024657,2]
[361124587,1747288234499,-306.47459831,0.00024657,2]
[361124588,1747288234509,-301.24020466,0.00024657,2]
[361124589,1747288234519,-306.17814387,0.00024657,2]
[361124590,1747288234529,-306.13285947,0.00024657,2]
[361124591,1747288234539,-450.0,0.00024657,2]
[361124592,1747288234549,-450.0,0.00024657,2]
[361124593,1747288234559,-301.92832266,0.00024657,2]
[361124594,1747288234569,-450.0,0.00024657,2]
[361124595,1747288234578,-450.0,0.00024657,2]
[361124596,1747288234588,-450.0,0.00024657,2]
[361124597,1747288234597,-450.0,0.00024657,2]
[361124598,1747288234607,-450.0,0.00024657,2]
[361124599,1747288234616,-207.45327182,0.00024657,2]
[361124600,1747288234626,-578.73953519,0.00024657,2]
[361124601,1747288234635,-450.0,0.00024657,2]
[361124602,1747288234644,-450.0,0.00024657,2]
[361124603,1747288234654,-450.0,0.00024657,2]
[361124604,1747288234663,-450.0,0.00024657,2]
[361124605,1747288234673,-450.0,0.00024657,2]
[361124606,1747288234682,-450.0,0.00024657,2]
[361124607,1747288234693,-206.08160523,0.00024657,2]
[361124608,1747288234702,-181.13210054,0.00024657,2]
[361124609,1747288234713,-450.0,0.00024657,2]
[361124610,1747288234722,-450.0,0.00024657,2]
[361124611,1747288234732,-450.0,0.00024657,2]
[361124612,1747288234742,-254.90841661,0.00024657,2]
[361124613,1747288234752,-234.0,0.00024657,2]
[361124614,1747288234762,-256.59921274,0.00024657,2]
[361124615,1747288234771,-303.5117403,0.00024657,2]
[361124616,1747288234782,-450.0,0.00024657,2]
[361124617,1747288234792,-302.44695799,0.00024657,2]
[361124618,1747288234801,-302.23180944,0.00024657,2]
[361124619,1747288234811,-450.0,0.00024657,2]
[361124620,1747288234821,-274.66693443,0.00024657,2]
[361124621,1747288235024,-450.0,0.00024657,2]
[361124622,1747288235035,-450.0,0.00024657,2]
[361124623,1747288235046,-347.9980389,0.00024657,2]
[361124624,1747288235056,-450.0,0.00024657,2]
[361124625,1747288235067,-450.0,0.00024657,2]
[361124626,1747288235078,-375.48842224,0.00024657,2]
[361124627,1747288235088,-211.53142303,0.00024657,2]
[361124628,1747288235099,-450.0,0.00024657,2]
[361124629,1747288235109,-450.0,0.00024657,2]
[361124630,1747288235119,-450.0,0.00024657,2]
[361124631,1747288235128,-709.15,0.00024657,2]
[361124632,1747288235137,-450.0,0.00024657,2]
[361124633,1747288235146,-450.0,0.00024657,2]
[361124634,1747288235156,-412.29537772,0.00024657,2]
[361124635,1747288235166,-195.31772017,0.00024657,2]
[361124636,1747288235175,-450.0,0.00024657,2]
[361124637,1747288235185,-450.0,0.00024657,2]
[361124638,1747288235195,-450.0,0.00024657,2]
[361124639,1747288235204,-450.0,0.00024657,2]
[361124640,1747288235216,-450.0,0.00024657,2]
[361124641,1747288235226,-273.39150302,0.00024657,2]
[361124642,1747288235235,-450.0,0.00024657,2]
[361124643,1747288235245,-450.0,0.00024657,2]
[361124644,1747288235254,-326.3493469,0.00024657,2]
[361124645,1747288235264,-450.0,0.00024657,2]
[361124646,1747288235274,-471.12823176,0.00024657,2]
[361124647,1747288235283,-450.0,0.00024657,2]
[361124648,1747288235293,-450.0,0.00024657,2]
[361124649,1747288235303,-450.0,0.00024657,2]
[361124650,1747288235314,-450.0,0.00024657,2]
[361124651,1747288235324,-314.55663735,0.00024657,2]
[361124652,1747288235333,-433.37975003,0.00024657,2]
[361124653,1747288235343,-450.0,0.00024657,2]
[361124654,1747288235353,-578.87,0.00024657,2]
[361124655,1747288235365,-450.0,0.00024657,2]
[361124656,1747288235375,-510.49461876,0.00024657,2]
[361124657,1747288235385,-385.60668911,0.00024657,2]
[361124658,1747288235395,-450.0,0.00024657,2]
[361124659,1747288235405,-353.47579197,0.00024657,2]
[361124660,1747288235414,-450.0,0.00024657,2]
[361124661,1747288235424,-450.0,0.00024657,2]
[361124662,1747288235434,-450.0,0.00024657,2]
[361124663,1747288235444,-309.63561007,0.00024657,2]
[361124664,1747288235453,-508.20679126,0.00024657,2]
[361124665,1747288235463,-154.84726046,0.00024657,2]
[361124666,1747288235473,-392.6343211,0.00024657,2]
[361124667,1747288235482,-450.0,0.00024657,2]
[361124668,1747288235491,-450.0,0.00024657,2]
[361124669,1747288235501,-450.0,0.00024657,2]
[361124670,1747288235511,-450.0,0.00024657,2]
[361124671,1747288235520,-450.0,0.00024657,2]
[361124672,1747288235530,-450.0,0.00024657,2]
[361124673,1747288235539,-450.0,0.00024657,2]
[361124674,1747288235548,-450.0,0.00024657,2]
[361124675,1747288235558,-450.0,0.00024657,2]
[361124676,1747288235567,-450.0,0.00024657,2]
[361124677,1747288235577,-450.0,0.00024657,2]
[361124678,1747288235587,-450.0,0.00024657,2]
[361124679,1747288235596,-450.0,0.00024657,2]
[361124680,1747288235606,-450.0,0.00024657,2]
[361124681,1747288235616,-450.0,0.00024657,2]
[361124682,1747288235625,-450.0,0.00024657,2]
[361124683,1747288235634,-450.0,0.00024657,2]
[361124684,1747288235644,-450.0,0.00024657,2]
[361124685,1747288235654,-450.0,0.00024657,2]
[361124686,1747288235663,-282.98849521,0.00024657,2]
[361124687,1747288235676,-461.55758918,0.00024657,2]
[361124688,1747288235687,-450.0,0.00024657,2]
[361124689,1747288235697,-450.0,0.00024657,2]
[361124690,1747288235706,-218.69727339,0.00024657,2]
[361124691,1747288235716,-450.0,0.00024657,2]
[361124692,1747288235726,-450.0,0.00024657,2]
[361124693,1747288235736,-450.0,0.00024657,2]
[361124694,1747288235746,-478.60282753,0.00024657,2]
[361124695,1747288235757,-1978.2,0.00024657,2]
[361124696,1747288235767,-450.0,0.00024657,2]
[361124697,1747288235777,-450.0,0.00024657,2]
[361124698,1747288235787,-450.0,0.00024657,2]
[361124699,1747288235796,-450.0,0.00024657,2]
[361124700,1747288235806,-475.2213068,0.00024657,2]
[361124701,1747288235816,-450.0,0.00024657,2]
[361124702,1747288235826,-521.64382906,0.00024657,2]
[361124703,1747288235836,-589.55276489,0.00024657,2]
[361124704,1747288235845,-450.0,0.00024657,2]
[361124705,1747288235855,-450.0,0.00024657,2]
[361124706,1747288235864,-450.0,0.00024657,2]
[361124707,1747288235873,-338.78319217,0.00024657,2]
[361124708,1747288235883,-745.19,0.00024657,2]
[361124709,1747288235892,-450.0,0.00024657,2]
[361124710,1747288235901,-495.66039487,0.00024657,2]
[361124711,1747288235911,-300.0,0.00024658,2]
[361124712,1747288235921,-1951.44760696,0.00024728,11]
[361124713,1747288235931,-450.0,0.00024767,2]
[361124714,1747288235942,-377.63859163,0.00024767,2]
[361124715,1747288235952,-288.20499047,0.00024767,2]
[361124716,1747288235961,-450.0,0.00024767,2]
[361124717,1747288235975,-515.9,0.00024767,2]
[361124718,1747288235984,-450.0,0.00024767,2]
[361124719,1747288235995,-450.0,0.00024767,2]
[361124720,1747288236004,-450.0,0.00024767,2]
[361124721,1747288236014,-450.0,0.00024767,2]
[361124722,1747288236023,-450.0,0.00024767,2]
[361124723,1747288236034,-450.0,0.00024767,2]
[361124724,1747288236044,-513.5128879,0.00024767,2]
[361124725,1747288236054,-450.0,0.00024767,2]
[361124726,1747288236063,-450.0,0.00024767,2]
[361124727,1747288236073,-450.0,0.00024767,2]
[361124728,1747288236083,-450.0,0.00024767,2]
[361124729,1747288236092,-450.0,0.00024767,2]
[361124730,1747288236102,-450.0,0.00024767,2]
[361124731,1747288236112,-488.6587364,0.00024767,2]
[361124732,1747288236122,-450.0,0.00024767,2]
[361124733,1747288236131,-450.0,0.00024767,2]
[361124734,1747288236141,-193.32000685,0.00024767,2]
[361124735,1747288236151,-450.0,0.00024767,2]
[361124736,1747288236160,-449.53742828,0.00024767,2]
[361124737,1747288236169,-450.0,0.00024767,2]
[361124738,1747288236179,-450.0,0.00024767,2]
[361124739,1747288236189,-406.44145247,0.00024767,2]
[361124740,1747288236200,-450.0,0.00024767,2]
[361124741,1747288236210,-450.0,0.00024767,2]
[361124742,1747288236220,-450.0,0.00024767,2]
[361124743,1747288236230,-590.87818726,0.00024767,2]
[361124744,1747288236240,-450.0,0.00024767,2]
[361124745,1747288236249,-450.0,0.00024767,2]
[361124746,1747288236259,-464.6553134,0.00024767,2]
[361124747,1747288236269,-450.0,0.00024767,2]
[361124748,1747288236279,-450.0,0.00024767,2]
[361124749,1747288236289,-450.0,0.00024767,2]
[361124750,1747288236298,-450.0,0.00024767,2]
[361124751,1747288236308,-450.0,0.00024767,2]
[361124752,1747288236319,-450.0,0.00024767,2]
[361124753,1747288236328,-450.0,0.00024767,2]
[361124754,1747288236339,-450.0,0.00024767,2]
[361124755,1747288236351,-554.19157065,0.00024767,2]
[361124756,1747288236360,-450.0,0.00024767,2]
[361124757,1747288236370,-348.41930691,0.00024767,2]
[361124758,1747288236380,-450.0,0.00024767,2]
[361124759,1747288236390,-450.0,0.00024767,2]
[361124760,1747288236401,-450.0,0.00024767,2]
[361124761,1747288236411,-450.0,0.00024767,2]
[361124762,1747288236421,-450.0,0.00024767,2]
[361124763,1747288236431,-709.15,0.00024767,2]
[361124764,1747288236442,-450.0,0.00024767,2]
[361124765,1747288236452,-450.0,0.00024767,2]
[361124766,1747288236462,-450.0,0.00024767,2]
[361124767,1747288236471,-450.0,0.00024767,2]
[361124768,1747288236481,-450.0,0.00024767,2]
[361124769,1747288236491,-350.41224863,0.00024767,2]
[361124770,1747288236501,-450.0,0.00024767,2]
[361124771,1747288236511,-450.0,0.00024767,2]
[361124772,1747288236521,-324.06139635,0.00024767,2]
[361124773,1747288236531,-516.79153362,0.00024767,2]
[361124774,1747288236542,-450.0,0.00024767,2]
[361124775,1747288236552,-450.0,0.00024767,2]
[361124776,1747288236561,-450.0,0.00024767,2]
[361124777,1747288236572,-450.0,0.00024767,2]
[361124778,1747288236585,-450.0,0.00024767,2]
[361124779,1747288236595,-578.87,0.00024767,2]
[361124780,1747288236606,-450.0,0.00024767,2]
[361124781,1747288236617,-450.0,0.00024767,2]
[361124782,1747288236628,-398.25901257,0.00024767,2]
[361124783,1747288236639,-450.0,0.00024767,2]
[361124784,1747288236650,-450.0,0.00024767,2]
[361124785,1747288236661,-361.94360535,0.00024767,2]
[361124786,1747288236672,-450.0,0.00024767,2]